[Event "Late-Titled-Tuesday-Blitz-March-12-2024"]
[Site "Chess.com"]
[Date "2024.03.12"]
[Round "11"]
[White "mestrefeitosa19"]
[Black "APOKALIPSA13"]
[Result "1-0"]
[WhiteElo "2311"]
[BlackElo "2205"]
[TimeControl "180+1"]
[EndTime "16:04:49 PDT"]
[Termination "mestrefeitosa19 won by resignation"]

1. c4 {[%clk 0:02:53.1]} 1... c5 {[%clk 0:02:56.7]} 2. Nc3 {[%clk 0:02:52.5]}
2... Nc6 {[%clk 0:02:54.8]} 3. Nf3 {[%clk 0:02:52.9]} 3... e5 {[%clk 0:02:54.5]}
4. e3 {[%clk 0:02:50.2]} 4... f5 {[%clk 0:02:50.7]} 5. d4 {[%clk 0:02:48.4]}
5... e4 {[%clk 0:02:49]} 6. d5 {[%clk 0:02:36.4]} 6... exf3 {[%clk 0:02:46.3]}
7. dxc6 {[%clk 0:02:36.5]} 7... fxg2 {[%clk 0:02:44.7]} 8. cxd7+ {[%clk
0:02:36]} 8... Qxd7 {[%clk 0:02:43.7]} 9. Bxg2 {[%clk 0:02:23.5]} 9... Qxd1+
{[%clk 0:02:39.2]} 10. Kxd1 {[%clk 0:02:24.4]} 10... Nf6 {[%clk 0:02:34.3]} 11.
Nb5 {[%clk 0:02:22.9]} 11... Kf7 {[%clk 0:02:28.1]} 12. Kc2 {[%clk 0:02:09.2]}
12... a6 {[%clk 0:02:21.4]} 13. Nc7 {[%clk 0:02:09.4]} 13... Rb8 {[%clk
0:02:20.5]} 14. Nd5 {[%clk 0:02:10.3]} 14... b5 {[%clk 0:02:15.9]} 15. b3 {[%clk
0:02:03.2]} 15... Ne4 {[%clk 0:02:13.5]} 16. f3 {[%clk 0:01:48.6]} 16... Nd6
{[%clk 0:02:13.1]} 17. cxb5 {[%clk 0:01:29.4]} 17... axb5 {[%clk 0:02:11.7]} 18.
e4 {[%clk 0:01:30]} 18... b4 {[%clk 0:01:54.1]} 19. Bb2 {[%clk 0:01:27.7]} 19...
Nb5 {[%clk 0:01:50.7]} 20. Rhd1 {[%clk 0:01:18.5]} 20... Be6 {[%clk 0:01:32.6]}
21. Nf4 {[%clk 0:01:10.2]} 21... Bc8 {[%clk 0:01:22.8]} 22. Nd5 {[%clk
0:01:02.1]} 22... Rg8 {[%clk 0:01:12.4]} 23. Bh3 {[%clk 0:00:59]} 23... fxe4
{[%clk 0:00:56.4]} 24. Bxc8 {[%clk 0:00:53.9]} 24... Rxc8 {[%clk 0:00:57.3]} 25.
fxe4 {[%clk 0:00:54.6]} 25... c4 {[%clk 0:00:48.8]} 26. Rf1+ {[%clk 0:00:39.2]}
26... Ke8 {[%clk 0:00:45.8]} 27. bxc4 {[%clk 0:00:40.1]} 27... Rxc4+ {[%clk
0:00:45.2]} 28. Kd3 {[%clk 0:00:40.8]} 28... Rc6 {[%clk 0:00:42.3]} 29. Rf5
{[%clk 0:00:31.2]} 29... Rh6 {[%clk 0:00:40.2]} 30. Ne3 {[%clk 0:00:23.1]} 30...
Nc3 {[%clk 0:00:34.8]} 31. Re5+ {[%clk 0:00:20.5]} 31... Kd7 {[%clk 0:00:31.4]}
32. Bxc3 {[%clk 0:00:19]} 32... bxc3 {[%clk 0:00:30.9]} 33. Kxc3 {[%clk
0:00:19.6]} 33... Rc6+ {[%clk 0:00:20.9]} 34. Kb3 {[%clk 0:00:17.9]} 34... Bd6
{[%clk 0:00:20.5]} 35. Rb5 {[%clk 0:00:16.1]} 35... Ra8 {[%clk 0:00:20.2]} 36.
a4 {[%clk 0:00:14.9]} 36... Rf8 {[%clk 0:00:18.2]} 37. Rd1 {[%clk 0:00:14.1]}
37... Rf3 {[%clk 0:00:17.7]} 38. Rd3 {[%clk 0:00:14.6]} 38... Kc7 {[%clk
0:00:17.3]} 39. Rbd5 {[%clk 0:00:12.5]} 39... Rb6+ {[%clk 0:00:14.2]} 40. Kc2
{[%clk 0:00:12.8]} 40... Rf2+ {[%clk 0:00:14.1]} 41. Rd2 {[%clk 0:00:07.8]}
41... Rxd2+ {[%clk 0:00:12.6]} 42. Rxd2 {[%clk 0:00:08.7]} 42... Bf4 {[%clk
0:00:12.9]} 43. Nd5+ {[%clk 0:00:07.7]} 43... Kb7 {[%clk 0:00:13]} 44. Nxb6
{[%clk 0:00:07.3]} 44... Bxd2 {[%clk 0:00:13.5]} 45. Kxd2 {[%clk 0:00:04.3]}
45... Kxb6 {[%clk 0:00:13.7]} 46. e5 {[%clk 0:00:04.7]} 46... Kc5 {[%clk
0:00:13.8]} 47. a5 {[%clk 0:00:05.1]} 47... Kd5 {[%clk 0:00:13.4]} 48. a6 {[%clk
0:00:05.5]} 48... Kc6 {[%clk 0:00:12.5]} 49. e6 {[%clk 0:00:04.7]} 49... Kb6
{[%clk 0:00:12.3]} 50. e7 {[%clk 0:00:05]} 50... Kxa6 {[%clk 0:00:12.9]} 51.
e8=Q {[%clk 0:00:05.9]} 51... Kb6 {[%clk 0:00:13.5]} 52. Qf7 {[%clk 0:00:06.2]}
52... g5 {[%clk 0:00:13.5]} 53. Qxh7 {[%clk 0:00:06.2]} 53... Kc5 {[%clk
0:00:14.4]} 54. Qg6 {[%clk 0:00:06.4]} 54... Kd4 {[%clk 0:00:15.2]} 55. Qxg5
{[%clk 0:00:06.8]} 55... Kc4 {[%clk 0:00:15.4]} 56. Qe5 {[%clk 0:00:06.6]} 1-0

[Event "Late-Titled-Tuesday-Blitz-March-12-2024"]
[Site "Chess.com"]
[Date "2024.03.12"]
[Round "11"]
[White "alexrustemov"]
[Black "GoltsevDmitry2000"]
[Result "1-0"]
[WhiteElo "2844"]
[BlackElo "2714"]
[TimeControl "180+1"]
[EndTime "16:04:54 PDT"]
[Termination "alexrustemov won by checkmate"]

1. d4 {[%clk 0:02:57.4]} 1... e6 {[%clk 0:02:59.4]} 2. Nf3 {[%clk 0:02:56.8]}
2... Nf6 {[%clk 0:02:58.9]} 3. Bg5 {[%clk 0:02:53.9]} 3... h6 {[%clk 0:02:58.6]}
4. Bh4 {[%clk 0:02:53.5]} 4... d5 {[%clk 0:02:58.8]} 5. e3 {[%clk 0:02:53.1]}
5... c5 {[%clk 0:02:59.4]} 6. c3 {[%clk 0:02:52.9]} 6... Nc6 {[%clk 0:03:00]} 7.
Bd3 {[%clk 0:02:52.1]} 7... Be7 {[%clk 0:02:58.7]} 8. Nbd2 {[%clk 0:02:51.6]}
8... Nd7 {[%clk 0:02:59.2]} 9. Bg3 {[%clk 0:02:44.6]} 9... a6 {[%clk 0:02:57.1]}
10. Qe2 {[%clk 0:02:39.8]} 10... b5 {[%clk 0:02:55.6]} 11. O-O {[%clk
0:02:38.3]} 11... f5 {[%clk 0:02:45.8]} 12. a4 {[%clk 0:02:30.4]} 12... c4
{[%clk 0:02:40.9]} 13. Bc2 {[%clk 0:02:29.4]} 13... b4 {[%clk 0:02:41.5]} 14.
Ne5 {[%clk 0:02:22.2]} 14... Ndxe5 {[%clk 0:02:36.9]} 15. Bxe5 {[%clk 0:02:19]}
15... Nxe5 {[%clk 0:02:36]} 16. dxe5 {[%clk 0:02:19.3]} 16... h5 {[%clk
0:02:08.5]} 17. Nf3 {[%clk 0:02:16.4]} 17... Qc7 {[%clk 0:02:02.1]} 18. Qd2
{[%clk 0:02:04]} 18... Rb8 {[%clk 0:01:55.8]} 19. h4 {[%clk 0:01:56.6]} 19...
Rg8 {[%clk 0:01:34.1]} 20. Qd4 {[%clk 0:01:56]} 20... Bd7 {[%clk 0:01:07.9]} 21.
Qf4 {[%clk 0:01:55.1]} 21... Qa5 {[%clk 0:00:59.6]} 22. Rfc1 {[%clk 0:01:45.4]}
22... Qd8 {[%clk 0:00:13.7]} 23. Bd1 {[%clk 0:01:40.1]} 23... g5 {[%clk
0:00:09.7]} 24. Nxg5 {[%clk 0:01:36.7]} 24... Bxg5 {[%clk 0:00:10.6]} 25. Bxh5+
{[%clk 0:01:35.7]} 25... Kf8 {[%clk 0:00:06.2]} 26. hxg5 {[%clk 0:01:35.2]}
26... Qxg5 {[%clk 0:00:07.1]} 27. Qxg5 {[%clk 0:01:26.2]} 27... Rxg5 {[%clk
0:00:08]} 28. Bf3 {[%clk 0:01:19.2]} 28... Ke7 {[%clk 0:00:08.3]} 29. g3 {[%clk
0:01:10]} 29... Rgg8 {[%clk 0:00:08.2]} 30. Kg2 {[%clk 0:01:09.6]} 30... bxc3
{[%clk 0:00:08]} 31. bxc3 {[%clk 0:01:09.2]} 31... Rb2 {[%clk 0:00:08.9]} 32.
Rh1 {[%clk 0:01:00.2]} 32... Rb3 {[%clk 0:00:08.6]} 33. Rh7+ {[%clk 0:00:59]}
33... Kd8 {[%clk 0:00:08.9]} 34. Rc1 {[%clk 0:00:50.8]} 34... Re8 {[%clk
0:00:08.7]} 35. Bh5 {[%clk 0:00:48.7]} 35... Re7 {[%clk 0:00:08.7]} 36. Rh8+
{[%clk 0:00:49.1]} 36... Kc7 {[%clk 0:00:09.1]} 37. a5 {[%clk 0:00:47.1]} 37...
Ra3 {[%clk 0:00:05.7]} 38. f3 {[%clk 0:00:41]} 38... Rxa5 {[%clk 0:00:05.1]} 39.
g4 {[%clk 0:00:41.3]} 39... Ra2+ {[%clk 0:00:05.3]} 40. Kg3 {[%clk 0:00:41.4]}
40... fxg4 {[%clk 0:00:06.2]} 41. fxg4 {[%clk 0:00:40]} 41... a5 {[%clk
0:00:05.3]} 42. g5 {[%clk 0:00:40.1]} 42... a4 {[%clk 0:00:05.8]} 43. g6 {[%clk
0:00:39.9]} 43... Rb2 {[%clk 0:00:05.6]} 44. Ra1 {[%clk 0:00:38.4]} 44... Rb8
{[%clk 0:00:03.6]} 45. Rh7 {[%clk 0:00:37.8]} 45... Rxh7 {[%clk 0:00:03.1]} 46.
gxh7 {[%clk 0:00:37.9]} 46... Rh8 {[%clk 0:00:03.7]} 47. Bg6 {[%clk 0:00:38.1]}
47... Kb6 {[%clk 0:00:02.4]} 48. Kf4 {[%clk 0:00:35.5]} 48... Kc7 {[%clk
0:00:02.4]} 49. Kg5 {[%clk 0:00:35.7]} 49... Kb6 {[%clk 0:00:01.8]} 50. Kh6
{[%clk 0:00:35.7]} 50... Rb8 {[%clk 0:00:02.2]} 51. Kg7 {[%clk 0:00:35.3]} 51...
Kc5 {[%clk 0:00:01.8]} 52. h8=Q {[%clk 0:00:34.1]} 52... Rxh8 {[%clk 0:00:02.3]}
53. Kxh8 {[%clk 0:00:34.4]} 53... Kc6 {[%clk 0:00:02.8]} 54. Kg7 {[%clk
0:00:34.3]} 54... Kc5 {[%clk 0:00:03.3]} 55. Kf6 {[%clk 0:00:34.6]} 55... Kb6
{[%clk 0:00:04]} 56. Bf7 {[%clk 0:00:32.9]} 56... Kc5 {[%clk 0:00:03.9]} 57.
Bxe6 {[%clk 0:00:33.2]} 57... Bb5 {[%clk 0:00:04.1]} 58. Bf5 {[%clk 0:00:32.1]}
58... Bc6 {[%clk 0:00:03.6]} 59. e6 {[%clk 0:00:32.3]} 59... Kd6 {[%clk
0:00:04.1]} 60. e7 {[%clk 0:00:32.5]} 60... Bb5 {[%clk 0:00:04.4]} 61. Bg6
{[%clk 0:00:32.8]} 61... d4 {[%clk 0:00:04.9]} 62. exd4 {[%clk 0:00:32.7]} 62...
Kc7 {[%clk 0:00:04.2]} 63. e8=Q {[%clk 0:00:32.6]} 63... Bc6 {[%clk 0:00:02.5]}
64. Qe7+ {[%clk 0:00:32]} 64... Kb6 {[%clk 0:00:02.7]} 65. Be4 {[%clk
0:00:31.6]} 65... Bb5 {[%clk 0:00:02.6]} 66. Qc5+ {[%clk 0:00:31.3]} 66... Ka5
{[%clk 0:00:02.7]} 67. Rxa4+ {[%clk 0:00:30.2]} 67... Kxa4 {[%clk 0:00:02.7]}
68. Qb4# {[%clk 0:00:30.5]} 1-0

[Event "Late-Titled-Tuesday-Blitz-March-12-2024"]
[Site "Chess.com"]
[Date "2024.03.12"]
[Round "11"]
[White "Heydarli77"]
[Black "rdarruda"]
[Result "1-0"]
[WhiteElo "2417"]
[BlackElo "2528"]
[TimeControl "180+1"]
[EndTime "16:04:57 PDT"]
[Termination "Heydarli77 won by resignation"]

1. d4 {[%clk 0:03:00.9]} 1... Nf6 {[%clk 0:02:55.7]} 2. Nf3 {[%clk 0:02:59.8]}
2... e6 {[%clk 0:02:55]} 3. c4 {[%clk 0:02:57.6]} 3... d5 {[%clk 0:02:54.8]} 4.
Nc3 {[%clk 0:02:56.4]} 4... Be7 {[%clk 0:02:54.7]} 5. Bg5 {[%clk 0:02:55.4]}
5... O-O {[%clk 0:02:54.3]} 6. e3 {[%clk 0:02:55.6]} 6... h6 {[%clk 0:02:53.8]}
7. Bh4 {[%clk 0:02:50.2]} 7... c6 {[%clk 0:02:52]} 8. cxd5 {[%clk 0:02:47.6]}
8... exd5 {[%clk 0:02:51.4]} 9. Qc2 {[%clk 0:02:47.5]} 9... Nbd7 {[%clk
0:02:48]} 10. Bd3 {[%clk 0:02:47]} 10... Re8 {[%clk 0:02:47.8]} 11. O-O {[%clk
0:02:45.2]} 11... Nf8 {[%clk 0:02:44.1]} 12. Rab1 {[%clk 0:02:43.2]} 12... Ne4
{[%clk 0:02:42]} 13. Bxe4 {[%clk 0:02:40]} 13... Bxh4 {[%clk 0:02:41.1]} 14. Bd3
{[%clk 0:02:33.7]} 14... Bf6 {[%clk 0:02:39.9]} 15. b4 {[%clk 0:02:32.7]} 15...
Bg4 {[%clk 0:02:37.9]} 16. Nd2 {[%clk 0:02:28.8]} 16... Rc8 {[%clk 0:02:35.5]}
17. Bf5 {[%clk 0:02:17]} 17... Bxf5 {[%clk 0:02:33.7]} 18. Qxf5 {[%clk
0:02:16.9]} 18... Ne6 {[%clk 0:02:31]} 19. b5 {[%clk 0:02:12.8]} 19... g6 {[%clk
0:02:23.5]} 20. Qf3 {[%clk 0:02:06.1]} 20... Ng5 {[%clk 0:02:20.9]} 21. Qg4
{[%clk 0:01:56.5]} 21... c5 {[%clk 0:02:13.2]} 22. Ne2 {[%clk 0:01:43.2]} 22...
h5 {[%clk 0:02:05.3]} 23. Qg3 {[%clk 0:01:26.3]} 23... c4 {[%clk 0:01:53.2]} 24.
Nc3 {[%clk 0:01:22.7]} 24... Ne6 {[%clk 0:01:31.8]} 25. Qf3 {[%clk 0:01:20.6]}
25... Bxd4 {[%clk 0:01:19.3]} 26. exd4 {[%clk 0:01:18.4]} 26... Nxd4 {[%clk
0:01:20.2]} 27. Qxd5 {[%clk 0:01:17.7]} 27... Ne2+ {[%clk 0:01:19.9]} 28. Kh1
{[%clk 0:01:13.8]} 28... Nxc3 {[%clk 0:01:19.7]} 29. Qxd8 {[%clk 0:01:07.6]}
29... Rcxd8 {[%clk 0:01:18.5]} 30. Rb2 {[%clk 0:01:06.7]} 30... Re2 {[%clk
0:01:13.6]} 31. Nxc4 {[%clk 0:01:05.2]} 31... Rxb2 {[%clk 0:01:12.4]} 32. Nxb2
{[%clk 0:01:05.1]} 32... Nxb5 {[%clk 0:01:11.9]} 33. Nc4 {[%clk 0:00:59]} 33...
Rd4 {[%clk 0:01:09]} 34. Ne3 {[%clk 0:00:57.4]} 34... Rd2 {[%clk 0:01:07.2]} 35.
a4 {[%clk 0:00:52.7]} 35... Nc3 {[%clk 0:01:07.1]} 36. a5 {[%clk 0:00:52.5]}
36... Ra2 {[%clk 0:01:07.2]} 37. Nc4 {[%clk 0:00:48.5]} 37... Ra4 {[%clk
0:01:05.4]} 38. Nd6 {[%clk 0:00:47.8]} 38... Rxa5 {[%clk 0:01:01.9]} 39. Nxb7
{[%clk 0:00:47.4]} 39... Ra2 {[%clk 0:01:01.8]} 40. g3 {[%clk 0:00:46.5]} 40...
a5 {[%clk 0:00:59.2]} 41. Rc1 {[%clk 0:00:42.7]} 41... Ne4 {[%clk 0:00:58]} 42.
f3 {[%clk 0:00:37.6]} 42... Nd2 {[%clk 0:00:52.7]} 43. Rc3 {[%clk 0:00:29.8]}
43... a4 {[%clk 0:00:50.4]} 44. Nd6 {[%clk 0:00:19.4]} 44... Rb2 {[%clk
0:00:38.7]} 45. Ra3 {[%clk 0:00:17.3]} 45... Rb4 {[%clk 0:00:36.9]} 46. Kg2
{[%clk 0:00:16.8]} 46... Nc4 {[%clk 0:00:37.1]} 47. Nxc4 {[%clk 0:00:13.9]}
47... Rxc4 {[%clk 0:00:38]} 48. Kf2 {[%clk 0:00:13.9]} 48... Kf8 {[%clk
0:00:37.9]} 49. Ke3 {[%clk 0:00:14.2]} 49... Ke7 {[%clk 0:00:35.4]} 50. Kd3
{[%clk 0:00:14.6]} 50... Rb4 {[%clk 0:00:25.9]} 51. Kc3 {[%clk 0:00:14.5]} 51...
Rb3+ {[%clk 0:00:15.1]} 52. Rxb3 {[%clk 0:00:14.1]} 52... axb3 {[%clk 0:00:16]}
53. Kxb3 {[%clk 0:00:14.7]} 53... Kd6 {[%clk 0:00:16.5]} 54. Kc4 {[%clk
0:00:14.6]} 54... Ke5 {[%clk 0:00:16.3]} 55. Kd3 {[%clk 0:00:14.8]} 55... g5
{[%clk 0:00:16.7]} 56. Ke3 {[%clk 0:00:14.6]} 56... f5 {[%clk 0:00:16]} 57. h3
{[%clk 0:00:14.5]} 57... f4+ {[%clk 0:00:14.6]} 58. gxf4+ {[%clk 0:00:14.7]}
58... gxf4+ {[%clk 0:00:14.7]} 59. Kd3 {[%clk 0:00:15.2]} 59... Kd5 {[%clk
0:00:14.7]} 60. h4 {[%clk 0:00:15.3]} 60... Ke5 {[%clk 0:00:14.1]} 61. Kc4
{[%clk 0:00:15.6]} 61... Ke6 {[%clk 0:00:12.3]} 62. Kd4 {[%clk 0:00:15.9]} 62...
Kf5 {[%clk 0:00:12.6]} 63. Kd5 {[%clk 0:00:16.4]} 63... Kf6 {[%clk 0:00:12.8]}
64. Ke4 {[%clk 0:00:16.5]} 64... Kg6 {[%clk 0:00:12.8]} 65. Kxf4 {[%clk
0:00:16.5]} 65... Kf6 {[%clk 0:00:13.5]} 66. Ke4 {[%clk 0:00:16.4]} 66... Ke6
{[%clk 0:00:13.9]} 67. f4 {[%clk 0:00:16.8]} 67... Kf6 {[%clk 0:00:14.7]} 68. f5
{[%clk 0:00:17.4]} 1-0

[Event "Late-Titled-Tuesday-Blitz-March-12-2024"]
[Site "Chess.com"]
[Date "2024.03.12"]
[Round "11"]
[White "prochn"]
[Black "Gryffindorac8"]
[Result "1-0"]
[WhiteElo "2473"]
[BlackElo "2370"]
[TimeControl "180+1"]
[EndTime "16:04:58 PDT"]
[Termination "prochn won by resignation"]

1. d4 {[%clk 0:02:59.2]} 1... Nf6 {[%clk 0:02:59.3]} 2. c4 {[%clk 0:02:58.5]}
2... c5 {[%clk 0:02:58.3]} 3. d5 {[%clk 0:02:58.5]} 3... b5 {[%clk 0:02:58.1]}
4. cxb5 {[%clk 0:02:58.8]} 4... a6 {[%clk 0:02:56.3]} 5. bxa6 {[%clk 0:02:59.1]}
5... Bxa6 {[%clk 0:02:54.7]} 6. Nc3 {[%clk 0:02:58.2]} 6... d6 {[%clk
0:02:54.7]} 7. g3 {[%clk 0:02:58.4]} 7... g6 {[%clk 0:02:53.6]} 8. Bg2 {[%clk
0:02:58.7]} 8... Bg7 {[%clk 0:02:53.8]} 9. Nf3 {[%clk 0:02:58.8]} 9... O-O
{[%clk 0:02:54.1]} 10. Rb1 {[%clk 0:02:56.4]} 10... Nbd7 {[%clk 0:02:54.1]} 11.
O-O {[%clk 0:02:55.3]} 11... Qb6 {[%clk 0:02:52.3]} 12. Qc2 {[%clk 0:02:46]}
12... Rfb8 {[%clk 0:02:50.3]} 13. b3 {[%clk 0:02:39.7]} 13... Ne8 {[%clk
0:02:49.6]} 14. Nd2 {[%clk 0:02:34.3]} 14... Nc7 {[%clk 0:02:38.8]} 15. Re1
{[%clk 0:02:32.1]} 15... h5 {[%clk 0:02:17.7]} 16. a4 {[%clk 0:02:31.6]} 16...
Ne5 {[%clk 0:02:10.3]} 17. h3 {[%clk 0:02:05.6]} 17... Qb4 {[%clk 0:01:48.7]}
18. Na2 {[%clk 0:01:49.7]} 18... Qb6 {[%clk 0:01:40.6]} 19. Bb2 {[%clk
0:01:49.1]} 19... Bc8 {[%clk 0:01:04.8]} 20. Bc3 {[%clk 0:01:47.7]} 20... Na6
{[%clk 0:00:59.6]} 21. f4 {[%clk 0:01:37.3]} 21... Nd7 {[%clk 0:00:54.7]} 22.
Kh2 {[%clk 0:01:36.1]} 22... Bxc3 {[%clk 0:00:43.2]} 23. Qxc3 {[%clk 0:01:35.6]}
23... Nb4 {[%clk 0:00:43.2]} 24. Nxb4 {[%clk 0:01:34.2]} 24... Qxb4 {[%clk
0:00:44.1]} 25. Qxb4 {[%clk 0:01:25.7]} 25... Rxb4 {[%clk 0:00:45]} 26. e4
{[%clk 0:01:23]} 26... Rab8 {[%clk 0:00:38.8]} 27. e5 {[%clk 0:01:21.1]} 27...
Ba6 {[%clk 0:00:27.4]} 28. Rbc1 {[%clk 0:01:19.4]} 28... h4 {[%clk 0:00:23.5]}
29. exd6 {[%clk 0:01:08.5]} 29... exd6 {[%clk 0:00:23.3]} 30. Re7 {[%clk
0:01:07.9]} 30... Nf6 {[%clk 0:00:23]} 31. f5 {[%clk 0:01:01.6]} 31... hxg3+
{[%clk 0:00:18.8]} 32. Kxg3 {[%clk 0:01:00.7]} 32... Rd4 {[%clk 0:00:18.5]} 33.
Rc2 {[%clk 0:00:43.8]} 33... g5 {[%clk 0:00:17.1]} 34. Bf3 {[%clk 0:00:41.2]}
34... Bd3 {[%clk 0:00:15.5]} 35. Rb2 {[%clk 0:00:39.1]} 35... Bxf5 {[%clk
0:00:15.6]} 36. a5 {[%clk 0:00:38.3]} 36... Ra8 {[%clk 0:00:13.6]} 37. Nc4
{[%clk 0:00:36.1]} 37... g4 {[%clk 0:00:11.5]} 38. hxg4 {[%clk 0:00:34.7]} 38...
Bxg4 {[%clk 0:00:11.7]} 39. Rf2 {[%clk 0:00:32.1]} 39... Bxf3 {[%clk 0:00:10.5]}
40. Rxf3 {[%clk 0:00:32.4]} 40... Nxd5 {[%clk 0:00:11.1]} 41. Rexf7 {[%clk
0:00:31.5]} 41... Rd3 {[%clk 0:00:07]} 42. Rd7 {[%clk 0:00:27.8]} 42... Rxf3+
{[%clk 0:00:06.2]} 43. Kxf3 {[%clk 0:00:28.7]} 43... Nb4 {[%clk 0:00:05.9]} 44.
Rxd6 {[%clk 0:00:27.5]} 44... Kf7 {[%clk 0:00:05.7]} 45. Rb6 {[%clk 0:00:25.1]}
45... Ke7 {[%clk 0:00:05.4]} 46. Rb5 {[%clk 0:00:24.1]} 46... Kd7 {[%clk
0:00:04]} 47. Rxc5 {[%clk 0:00:23.3]} 47... Nd3 {[%clk 0:00:04.2]} 48. Rd5+
{[%clk 0:00:23.3]} 48... Kc6 {[%clk 0:00:03.8]} 49. Rxd3 {[%clk 0:00:24.2]}
49... Kc5 {[%clk 0:00:04.3]} 50. Re3 {[%clk 0:00:23.6]} 50... Kb4 {[%clk
0:00:04.6]} 51. Ke2 {[%clk 0:00:23.4]} 51... Rf8 {[%clk 0:00:04.7]} 52. Kd3
{[%clk 0:00:23.2]} 52... Rd8+ {[%clk 0:00:04.8]} 53. Kc2 {[%clk 0:00:23.3]}
53... Rg8 {[%clk 0:00:05.2]} 54. Re2 {[%clk 0:00:23.2]} 54... Rf8 {[%clk
0:00:05.2]} 55. Rd2 {[%clk 0:00:22.8]} 55... Rg8 {[%clk 0:00:05.5]} 56. a6
{[%clk 0:00:23]} 56... Ra8 {[%clk 0:00:05.2]} 57. Rd6 {[%clk 0:00:22.6]} 57...
Kb5 {[%clk 0:00:04.6]} 58. Rb6+ {[%clk 0:00:22.5]} 58... Kc5 {[%clk 0:00:04.5]}
59. Kc3 {[%clk 0:00:22.6]} 59... Rg8 {[%clk 0:00:03.8]} 60. b4+ {[%clk
0:00:22.9]} 60... Kd5 {[%clk 0:00:04]} 61. Rd6+ {[%clk 0:00:23.1]} 61... Ke4
{[%clk 0:00:03.5]} 62. a7 {[%clk 0:00:23.4]} 62... Ra8 {[%clk 0:00:03.5]} 63.
Rd7 {[%clk 0:00:22.3]} 1-0

[Event "Late-Titled-Tuesday-Blitz-March-12-2024"]
[Site "Chess.com"]
[Date "2024.03.12"]
[Round "11"]
[White "djano"]
[Black "Lennis93"]
[Result "1-0"]
[WhiteElo "2610"]
[BlackElo "2699"]
[TimeControl "180+1"]
[EndTime "16:04:59 PDT"]
[Termination "djano won on time"]

1. e4 {[%clk 0:02:59.2]} 1... e6 {[%clk 0:02:42.8]} 2. d4 {[%clk 0:02:58.1]}
2... d5 {[%clk 0:02:43.1]} 3. Bd3 {[%clk 0:02:58.5]} 3... dxe4 {[%clk
0:02:42.7]} 4. Bxe4 {[%clk 0:02:59.4]} 4... Nf6 {[%clk 0:02:43.3]} 5. Bf3 {[%clk
0:02:59.8]} 5... c5 {[%clk 0:02:43.9]} 6. Ne2 {[%clk 0:02:59.4]} 6... Be7 {[%clk
0:02:44.5]} 7. O-O {[%clk 0:02:59.3]} 7... O-O {[%clk 0:02:43.9]} 8. Nbc3 {[%clk
0:02:59.5]} 8... Nc6 {[%clk 0:02:33.9]} 9. Be3 {[%clk 0:02:58.8]} 9... cxd4
{[%clk 0:02:15.2]} 10. Nxd4 {[%clk 0:02:59.7]} 10... Ne5 {[%clk 0:02:14]} 11.
Ne4 {[%clk 0:02:57.9]} 11... Nd5 {[%clk 0:02:11.3]} 12. Qe2 {[%clk 0:02:36.3]}
12... Qc7 {[%clk 0:02:00.6]} 13. c3 {[%clk 0:02:30]} 13... b6 {[%clk 0:01:58.6]}
14. Bd2 {[%clk 0:02:17.9]} 14... Bb7 {[%clk 0:01:56.8]} 15. Rfe1 {[%clk
0:02:11.8]} 15... Rad8 {[%clk 0:01:53.9]} 16. Ng5 {[%clk 0:02:07.2]} 16... Nxf3+
{[%clk 0:01:43.2]} 17. Ngxf3 {[%clk 0:02:06.2]} 17... Bc5 {[%clk 0:01:21.4]} 18.
Bg5 {[%clk 0:01:59.4]} 18... Rc8 {[%clk 0:01:14.4]} 19. Rad1 {[%clk 0:01:55.6]}
19... Rfe8 {[%clk 0:01:12.6]} 20. Bc1 {[%clk 0:01:48.1]} 20... Nf4 {[%clk
0:00:57.3]} 21. Bxf4 {[%clk 0:01:46.7]} 21... Qxf4 {[%clk 0:00:58.2]} 22. Qe5
{[%clk 0:01:47.2]} 22... Qxe5 {[%clk 0:00:57.3]} 23. Nxe5 {[%clk 0:01:47.6]}
23... Red8 {[%clk 0:00:53.3]} 24. Nb5 {[%clk 0:01:38]} 24... a6 {[%clk
0:00:47.2]} 25. Nd4 {[%clk 0:01:21.5]} 25... Bxd4 {[%clk 0:00:44]} 26. cxd4
{[%clk 0:01:21.8]} 26... Rc2 {[%clk 0:00:43.7]} 27. a3 {[%clk 0:01:04.6]} 27...
Rxb2 {[%clk 0:00:41.6]} 28. Rc1 {[%clk 0:01:05.3]} 28... f6 {[%clk 0:00:37.6]}
29. Nd3 {[%clk 0:00:59.1]} 29... Rb3 {[%clk 0:00:34.4]} 30. Nf4 {[%clk
0:00:59.4]} 30... Bd5 {[%clk 0:00:31.9]} 31. Rc7 {[%clk 0:00:54.6]} 31... Rxa3
{[%clk 0:00:26.8]} 32. h4 {[%clk 0:00:48.8]} 32... Ra4 {[%clk 0:00:15.2]} 33.
Nh5 {[%clk 0:00:46.4]} 33... Rxd4 {[%clk 0:00:14.5]} 34. Rxg7+ {[%clk
0:00:45.2]} 34... Kh8 {[%clk 0:00:14.7]} 35. Ra7 {[%clk 0:00:45]} 35... Rf8
{[%clk 0:00:10.8]} 36. g3 {[%clk 0:00:43.9]} 36... a5 {[%clk 0:00:10.3]} 37. Rc1
{[%clk 0:00:41.1]} 37... Rc4 {[%clk 0:00:10.7]} 38. Rb1 {[%clk 0:00:41.2]} 38...
Rc6 {[%clk 0:00:10.1]} 39. Nf4 {[%clk 0:00:26.9]} 39... Bf3 {[%clk 0:00:09.3]}
40. Kh2 {[%clk 0:00:25.1]} 40... e5 {[%clk 0:00:09.6]} 41. Nd3 {[%clk
0:00:17.6]} 41... Be4 {[%clk 0:00:09.8]} 42. Rb3 {[%clk 0:00:18.1]} 42... Bxd3
{[%clk 0:00:09]} 43. Rxd3 {[%clk 0:00:19]} 43... f5 {[%clk 0:00:07.4]} 44. Rdd7
{[%clk 0:00:19.2]} 44... Rh6 {[%clk 0:00:07.7]} 45. Re7 {[%clk 0:00:19.6]} 45...
e4 {[%clk 0:00:07.4]} 46. Reb7 {[%clk 0:00:16.2]} 46... f4 {[%clk 0:00:07.1]}
47. Re7 {[%clk 0:00:16.4]} 47... e3 {[%clk 0:00:07]} 48. fxe3 {[%clk 0:00:16.6]}
48... fxg3+ {[%clk 0:00:03.2]} 49. Kxg3 {[%clk 0:00:17.5]} 49... Rg8+ {[%clk
0:00:03.3]} 50. Kh3 {[%clk 0:00:17.9]} 50... Rh5 {[%clk 0:00:02.7]} 51. e4
{[%clk 0:00:18.1]} 51... b5 {[%clk 0:00:03]} 52. Rxa5 {[%clk 0:00:17.6]} 52...
Rc8 {[%clk 0:00:01.9]} 53. Kg4 {[%clk 0:00:16]} 53... Rh6 {[%clk 0:00:01.3]} 54.
Rxb5 {[%clk 0:00:15.1]} 54... Rg8+ {[%clk 0:00:02.2]} 55. Rg5 {[%clk 0:00:15.2]}
55... Rxg5+ {[%clk 0:00:01.4]} 56. hxg5 {[%clk 0:00:16.1]} 56... Ra6 {[%clk
0:00:01.5]} 57. Kf5 {[%clk 0:00:16.6]} 57... Kg8 {[%clk 0:00:02]} 58. e5 {[%clk
0:00:17.1]} 58... Rg6 {[%clk 0:00:01.9]} 59. Rd7 {[%clk 0:00:16.7]} 1-0